[Event "*** Titled Tuesday Blitz"]
[Site "Chess.com"]
[Date "2019.07.02"]
[Round "4"]
[White "TBergh98"]
[Black "ENEASZ"]
[Result "0-1"]
[WhiteElo "2273"]
[BlackElo "2498"]
[TimeControl "180+2"]
[EndTime "13:48:03 PDT"]
[Termination "ENEASZ won by resignation"]

1. d4 {[%clk 0:03:01.9]} 1... d5 {[%clk 0:03:00.7]} 2. Nf3 {[%clk 0:03:03]} 2...
Nf6 {[%clk 0:03:01.5]} 3. Bf4 {[%clk 0:03:04.2]} 3... c5 {[%clk 0:03:00.3]} 4.
c3 {[%clk 0:03:05.1]} 4... Nc6 {[%clk 0:03:01.4]} 5. e3 {[%clk 0:03:06.5]} 5...
Qb6 {[%clk 0:03:02.2]} 6. Qc1 {[%clk 0:03:03.2]} 6... Nh5 {[%clk 0:03:01.5]} 7.
Bg3 {[%clk 0:03:03.9]} 7... Nxg3 {[%clk 0:03:02.4]} 8. hxg3 {[%clk 0:03:05.8]}
8... Bf5 {[%clk 0:03:01]} 9. Nbd2 {[%clk 0:03:07]} 9... e6 {[%clk 0:03:01.1]}
10. Be2 {[%clk 0:03:08.4]} 10... h6 {[%clk 0:03:02.2]} 11. O-O {[%clk
0:03:09.8]} 11... Be7 {[%clk 0:03:03.6]} 12. a3 {[%clk 0:03:09.8]} 12... c4
{[%clk 0:03:01.2]} 13. Re1 {[%clk 0:03:10.3]} 13... Bh7 {[%clk 0:02:59.6]} 14.
Bf1 {[%clk 0:03:09.6]} 14... f5 {[%clk 0:03:00.4]} 15. Be2 {[%clk 0:03:03.8]}
15... O-O {[%clk 0:03:01]} 16. Bd1 {[%clk 0:03:05.3]} 16... g5 {[%clk
0:03:01.5]} 17. Bc2 {[%clk 0:03:06.3]} 17... g4 {[%clk 0:03:01.9]} 18. Nh2
{[%clk 0:02:51.5]} 18... h5 {[%clk 0:03:03.1]} 19. Rb1 {[%clk 0:02:46.6]} 19...
Qc7 {[%clk 0:03:04.3]} 20. b4 {[%clk 0:02:46.3]} 20... Kg7 {[%clk 0:02:59.8]}
21. a4 {[%clk 0:02:46.8]} 21... Bg6 {[%clk 0:02:55.1]} 22. a5 {[%clk 0:02:47.5]}
22... Rh8 {[%clk 0:02:54.5]} 23. f3 {[%clk 0:02:41.1]} 23... Qxg3 {[%clk
0:02:54.9]} 24. fxg4 {[%clk 0:02:41.3]} 24... hxg4 {[%clk 0:02:56.3]} 25. Ndf1
{[%clk 0:02:42.1]} 25... Qh4 {[%clk 0:02:53.7]} 26. g3 {[%clk 0:02:38.2]} 26...
Qh3 {[%clk 0:02:54.3]} 27. Qd2 {[%clk 0:02:37]} 27... Bd6 {[%clk 0:02:55.3]} 28.
Qg2 {[%clk 0:02:37.9]} 28... Qxg2+ {[%clk 0:02:56.5]} 29. Kxg2 {[%clk
0:02:38.9]} 29... Rh3 {[%clk 0:02:58.4]} 30. Ra1 {[%clk 0:02:27.8]} 30... Rah8
{[%clk 0:02:58.4]} 31. b5 {[%clk 0:02:25.4]} 31... Ne7 {[%clk 0:02:59.1]} 32. b6
{[%clk 0:02:20.8]} 32... a6 {[%clk 0:02:59.9]} 33. Re2 {[%clk 0:02:18.8]} 33...
Bxg3 {[%clk 0:03:00.1]} 34. Nxg3 {[%clk 0:02:15]} 34... Rxh2+ {[%clk 0:03:00.9]}
35. Kf1 {[%clk 0:02:14.1]} 35... Rxe2 {[%clk 0:03:02.3]} 36. Kxe2 {[%clk
0:02:15.6]} 36... Rh2+ {[%clk 0:03:02.7]} 37. Kd1 {[%clk 0:02:16.5]} 37... Rg2
{[%clk 0:03:04]} 38. Nf1 {[%clk 0:02:17.1]} 38... g3 {[%clk 0:03:05.4]} 39. Rc1
{[%clk 0:02:10.6]} 39... Bh5+ {[%clk 0:03:05.6]} 40. Ke1 {[%clk 0:02:11.2]}
40... Re2+ {[%clk 0:03:06.7]} 41. Kd1 {[%clk 0:02:12.7]} 41... g2 {[%clk
0:03:08.2]} 0-1

[Event "*** Titled Tuesday Blitz"]
[Site "Chess.com"]
[Date "2019.07.02"]
[Round "4"]
[White "Saitama_Hero"]
[Black "timator"]
[Result "0-1"]
[WhiteElo "2245"]
[BlackElo "2414"]
[TimeControl "180+2"]
[EndTime "13:48:55 PDT"]
[Termination "timator won by resignation"]

1. e4 {[%clk 0:03:01.9]} 1... c5 {[%clk 0:03:00.7]} 2. Nc3 {[%clk 0:03:01.7]}
2... d6 {[%clk 0:02:59.3]} 3. g3 {[%clk 0:03:03.6]} 3... g6 {[%clk 0:02:59.8]}
4. Bg2 {[%clk 0:03:05.5]} 4... Bg7 {[%clk 0:03:01.5]} 5. Nge2 {[%clk 0:03:07.4]}
5... Nc6 {[%clk 0:03:02.9]} 6. O-O {[%clk 0:03:09.3]} 6... e5 {[%clk 0:03:04.6]}
7. d3 {[%clk 0:03:10.5]} 7... Nge7 {[%clk 0:03:06.2]} 8. f4 {[%clk 0:03:11.5]}
8... O-O {[%clk 0:03:07.4]} 9. Be3 {[%clk 0:03:09.6]} 9... Rb8 {[%clk
0:03:08.3]} 10. Qd2 {[%clk 0:03:06.6]} 10... b5 {[%clk 0:03:07]} 11. fxe5 {[%clk
0:02:54]} 11... Nxe5 {[%clk 0:03:06.2]} 12. Bh6 {[%clk 0:02:53.6]} 12... b4
{[%clk 0:03:06.4]} 13. Nd1 {[%clk 0:02:52.2]} 13... Bxh6 {[%clk 0:01:56.5]} 14.
Qxh6 {[%clk 0:02:48.6]} 14... Bg4 {[%clk 0:01:58.1]} 15. Nf4 {[%clk 0:02:27.8]}
15... Kh8 {[%clk 0:01:57.8]} 16. Ne3 {[%clk 0:02:24.7]} 16... Ng8 {[%clk
0:01:55.8]} 17. Qh4 {[%clk 0:01:24.7]} 17... g5 {[%clk 0:01:56.6]} 18. Ng6+
{[%clk 0:01:24.9]} 18... fxg6 {[%clk 0:01:52.4]} 19. Rxf8 {[%clk 0:01:25.3]}
19... Qxf8 {[%clk 0:01:53.5]} 20. Qxg5 {[%clk 0:01:25.1]} 20... Qh6 {[%clk
0:01:51]} 21. Qxh6 {[%clk 0:01:21.3]} 21... Nxh6 {[%clk 0:01:52.9]} 22. Rf1
{[%clk 0:01:16.1]} 22... Kg7 {[%clk 0:01:53.5]} 0-1

[Event "*** Titled Tuesday Blitz"]
[Site "Chess.com"]
[Date "2019.07.02"]
[Round "4"]
[White "ChessQueen"]
[Black "severomorskij"]
[Result "0-1"]
[WhiteElo "2606"]
[BlackElo "2852"]
[TimeControl "180+2"]
[EndTime "13:49:08 PDT"]
[Termination "severomorskij won by resignation"]

1. e4 {[%clk 0:03:01.9]} 1... c5 {[%clk 0:03:00.9]} 2. c3 {[%clk 0:03:02.7]}
2... d5 {[%clk 0:02:59.4]} 3. exd5 {[%clk 0:03:03.5]} 3... Qxd5 {[%clk
0:03:00.3]} 4. d4 {[%clk 0:03:04.6]} 4... Nc6 {[%clk 0:02:55.9]} 5. Nf3 {[%clk
0:03:04]} 5... Bf5 {[%clk 0:02:56.5]} 6. Be3 {[%clk 0:03:01.5]} 6... Nf6 {[%clk
0:02:47.1]} 7. Na3 {[%clk 0:03:00.7]} 7... e6 {[%clk 0:02:43.2]} 8. Bc4 {[%clk
0:02:55.1]} 8... Qe4 {[%clk 0:02:30.6]} 9. O-O {[%clk 0:02:04.4]} 9... cxd4
{[%clk 0:02:28.8]} 10. Nb5 {[%clk 0:02:04.5]} 10... dxe3 {[%clk 0:02:19.7]} 11.
Nc7+ {[%clk 0:01:52.8]} 11... Ke7 {[%clk 0:02:20.1]} 12. Nxa8 {[%clk 0:01:45.4]}
12... exf2+ {[%clk 0:02:17.3]} 13. Rxf2 {[%clk 0:01:46.2]} 13... Qxc4 {[%clk
0:02:18.3]} 14. Rd2 {[%clk 0:01:40.8]} 14... g6 {[%clk 0:02:07.4]} 15. Nd4
{[%clk 0:01:27.6]} 15... Bh6 {[%clk 0:01:58.9]} 16. Nxf5+ {[%clk 0:00:30.5]}
16... gxf5 {[%clk 0:01:57.7]} 0-1

[Event "*** Titled Tuesday Blitz"]
[Site "Chess.com"]
[Date "2019.07.02"]
[Round "4"]
[White "Nastasia28"]
[Black "MikeSailer"]
[Result "0-1"]
[WhiteElo "1902"]
[BlackElo "2074"]
[TimeControl "180+2"]
[EndTime "13:49:29 PDT"]
[Termination "MikeSailer won by checkmate"]

1. d4 {[%clk 0:02:57.6]} 1... d5 {[%clk 0:03:00.3]} 2. c4 {[%clk 0:02:58.6]}
2... c6 {[%clk 0:03:01.4]} 3. Nc3 {[%clk 0:02:59.3]} 3... Nf6 {[%clk 0:03:02.5]}
4. Bf4 {[%clk 0:02:57.8]} 4... a6 {[%clk 0:03:03]} 5. e3 {[%clk 0:02:58.4]} 5...
b5 {[%clk 0:03:01.9]} 6. cxd5 {[%clk 0:02:56.1]} 6... cxd5 {[%clk 0:03:02.8]} 7.
Nf3 {[%clk 0:02:56.4]} 7... Bg4 {[%clk 0:03:02.8]} 8. Be2 {[%clk 0:02:57]} 8...
e6 {[%clk 0:03:04.1]} 9. h3 {[%clk 0:02:55.6]} 9... Bh5 {[%clk 0:03:05.2]} 10.
O-O {[%clk 0:02:54.5]} 10... Bd6 {[%clk 0:03:05.7]} 11. Bxd6 {[%clk 0:02:53.5]}
11... Qxd6 {[%clk 0:03:06.3]} 12. Ne5 {[%clk 0:02:54.8]} 12... Bxe2 {[%clk
0:03:07.2]} 13. Qxe2 {[%clk 0:02:55.9]} 13... O-O {[%clk 0:03:06.6]} 14. Rac1
{[%clk 0:02:56.3]} 14... Nbd7 {[%clk 0:03:00.3]} 15. Nxd7 {[%clk 0:02:53.9]}
15... Qxd7 {[%clk 0:02:43.9]} 16. Rc2 {[%clk 0:02:54.4]} 16... Rfc8 {[%clk
0:02:40.8]} 17. Rfc1 {[%clk 0:02:54.6]} 17... h6 {[%clk 0:02:38.1]} 18. a4
{[%clk 0:02:47.9]} 18... b4 {[%clk 0:02:37.8]} 19. Nb1 {[%clk 0:02:38]} 19... b3
{[%clk 0:01:55.8]} 20. Rxc8+ {[%clk 0:02:27.8]} 20... Rxc8 {[%clk 0:01:56.7]}
21. Rc3 {[%clk 0:02:28.7]} 21... Ne4 {[%clk 0:01:51.5]} 22. Rxb3 {[%clk
0:02:08.9]} 22... Rc1+ {[%clk 0:01:45.9]} 23. Kh2 {[%clk 0:02:09.6]} 23... Rxb1
{[%clk 0:01:42.1]} 24. Rb8+ {[%clk 0:02:05.5]} 24... Kh7 {[%clk 0:01:43.1]} 25.
Rb3 {[%clk 0:01:50.2]} 25... Qc7+ {[%clk 0:01:38.7]} 26. g3 {[%clk 0:01:49.7]}
26... Qc1 {[%clk 0:01:38.1]} 27. Qf3 {[%clk 0:01:29.3]} 27... Qg1# {[%clk
0:01:36.4]} 0-1

[Event "*** Titled Tuesday Blitz"]
[Site "Chess.com"]
[Date "2019.07.02"]
[Round "4"]
[White "marianokar"]
[Black "CarrotsandPizza"]
[Result "1-0"]
[WhiteElo "2455"]
[BlackElo "2253"]
[TimeControl "180+2"]
[EndTime "13:49:33 PDT"]
[Termination "marianokar won on time"]

1. c4 {[%clk 0:03:01.9]} 1... e5 {[%clk 0:02:59.8]} 2. g3 {[%clk 0:03:01.9]}
2... Nf6 {[%clk 0:02:59.9]} 3. Bg2 {[%clk 0:03:02.8]} 3... c6 {[%clk 0:03:00.8]}
4. Nf3 {[%clk 0:03:03.4]} 4... e4 {[%clk 0:03:01.3]} 5. Nd4 {[%clk 0:03:04.8]}
5... d5 {[%clk 0:03:02.2]} 6. cxd5 {[%clk 0:03:06.1]} 6... cxd5 {[%clk
0:03:04.1]} 7. O-O {[%clk 0:03:06.6]} 7... h6 {[%clk 0:02:53.9]} 8. d3 {[%clk
0:03:07]} 8... Be7 {[%clk 0:02:53.1]} 9. Nc3 {[%clk 0:03:07.2]} 9... exd3 {[%clk
0:02:31.3]} 10. Qxd3 {[%clk 0:03:05.9]} 10... O-O {[%clk 0:02:31.6]} 11. Bf4
{[%clk 0:02:53.9]} 11... Nc6 {[%clk 0:02:30]} 12. Rfd1 {[%clk 0:02:51.1]} 12...
Re8 {[%clk 0:02:28.7]} 13. Rac1 {[%clk 0:02:49.4]} 13... Qb6 {[%clk 0:00:44.5]}
14. Ndb5 {[%clk 0:02:31.7]} 14... Rd8 {[%clk 0:00:08.9]} 15. Bc7 {[%clk
0:02:30.8]} 15... Qa6 {[%clk 0:00:08.9]} 16. Bxd8 {[%clk 0:02:29.3]} 16... Bxd8
{[%clk 0:00:10.3]} 17. Nxd5 {[%clk 0:02:26.5]} 17... Nxd5 {[%clk 0:00:05.1]} 18.
Bxd5 {[%clk 0:02:24.5]} 18... Bh3 {[%clk 0:00:06.5]} 19. Nd6 {[%clk 0:02:10]}
1-0

[Event "*** Titled Tuesday Blitz"]
[Site "Chess.com"]
[Date "2019.07.02"]
[Round "4"]
[White "Maili15"]
[Black "1d4_1-0"]
[Result "0-1"]
[WhiteElo "2247"]
[BlackElo "2202"]
[TimeControl "180+2"]
[EndTime "13:49:45 PDT"]
[Termination "1d4_1-0 won by resignation"]

1. d4 {[%clk 0:03:01.9]} 1... e6 {[%clk 0:03:00.9]} 2. c4 {[%clk 0:03:03.4]}
2... Nf6 {[%clk 0:03:01.5]} 3. Nc3 {[%clk 0:03:04.6]} 3... Bb4 {[%clk
0:03:01.9]} 4. e3 {[%clk 0:03:06]} 4... O-O {[%clk 0:03:01.8]} 5. Bd3 {[%clk
0:03:07.5]} 5... d5 {[%clk 0:03:02.7]} 6. Ne2 {[%clk 0:03:08.3]} 6... c5 {[%clk
0:03:03.4]} 7. a3 {[%clk 0:03:08.2]} 7... Bxc3+ {[%clk 0:02:58.4]} 8. bxc3
{[%clk 0:03:10.1]} 8... Nc6 {[%clk 0:02:57.3]} 9. O-O {[%clk 0:03:10.5]} 9... b6
{[%clk 0:02:57.5]} 10. Bb2 {[%clk 0:03:07.6]} 10... Na5 {[%clk 0:02:51.4]} 11.
cxd5 {[%clk 0:03:07.1]} 11... exd5 {[%clk 0:02:52.3]} 12. Ng3 {[%clk 0:02:59.9]}
12... Bd7 {[%clk 0:02:43.8]} 13. Re1 {[%clk 0:02:50.4]} 13... cxd4 {[%clk
0:02:44.1]} 14. cxd4 {[%clk 0:02:50.3]} 14... Rc8 {[%clk 0:02:40]} 15. f3 {[%clk
0:02:47.3]} 15... Nc4 {[%clk 0:02:39.8]} 16. Bc1 {[%clk 0:02:42.2]} 16... Re8
{[%clk 0:02:21.8]} 17. e4 {[%clk 0:02:39.5]} 17... dxe4 {[%clk 0:02:18.9]} 18.
fxe4 {[%clk 0:02:38.8]} 18... Bg4 {[%clk 0:01:53.7]} 19. Be2 {[%clk 0:02:38.6]}
19... Bxe2 {[%clk 0:01:51.2]} 20. Rxe2 {[%clk 0:02:40.1]} 20... b5 {[%clk
0:01:46.8]} 21. Bg5 {[%clk 0:02:39.4]} 21... Qb6 {[%clk 0:01:46.9]} 22. Kh1
{[%clk 0:02:33.7]} 22... Rcd8 {[%clk 0:01:40.2]} 23. d5 {[%clk 0:02:31.3]} 23...
h6 {[%clk 0:01:33]} 24. Bxf6 {[%clk 0:02:29.5]} 24... Qxf6 {[%clk 0:01:33.3]}
25. Nf5 {[%clk 0:02:06.9]} 25... Rxd5 {[%clk 0:01:24.1]} 26. Qe1 {[%clk
0:01:17.1]} 26... Rxf5 {[%clk 0:01:20.7]} 0-1

[Event "*** Titled Tuesday Blitz"]
[Site "Chess.com"]
[Date "2019.07.02"]
[Round "4"]
[White "Caisachess"]
[Black "INLOVEWITHF"]
[Result "0-1"]
[WhiteElo "2367"]
[BlackElo "2380"]
[TimeControl "180+2"]
[EndTime "13:49:53 PDT"]
[Termination "INLOVEWITHF won by resignation"]

1. e4 {[%clk 0:03:01.9]} 1... c5 {[%clk 0:02:54]} 2. c3 {[%clk 0:03:02.5]} 2...
d5 {[%clk 0:02:49.1]} 3. exd5 {[%clk 0:03:03.5]} 3... Qxd5 {[%clk 0:02:51]} 4.
d4 {[%clk 0:03:05]} 4... Nf6 {[%clk 0:02:50.6]} 5. Nf3 {[%clk 0:03:06]} 5... e6
{[%clk 0:02:52.2]} 6. Be3 {[%clk 0:03:06.1]} 6... Nc6 {[%clk 0:02:51.3]} 7. Bd3
{[%clk 0:03:06.5]} 7... Qd8 {[%clk 0:02:47.4]} 8. O-O {[%clk 0:03:06.9]} 8...
Be7 {[%clk 0:02:47.9]} 9. dxc5 {[%clk 0:03:04.9]} 9... Nd5 {[%clk 0:02:48.5]}
10. Qe2 {[%clk 0:02:56.4]} 10... Nxe3 {[%clk 0:02:43]} 11. Qxe3 {[%clk
0:02:57.3]} 11... O-O {[%clk 0:02:37.3]} 12. Nbd2 {[%clk 0:02:57]} 12... h6
{[%clk 0:02:21.1]} 13. Rad1 {[%clk 0:02:54.4]} 13... Bxc5 {[%clk 0:02:15.4]} 14.
Qxc5 {[%clk 0:02:40.3]} 14... Qxd3 {[%clk 0:02:15.7]} 15. Nc4 {[%clk 0:02:38.9]}
15... Qe4 {[%clk 0:01:54.8]} 16. Rfe1 {[%clk 0:02:36.9]} 16... Qf4 {[%clk
0:01:55.5]} 17. Nce5 {[%clk 0:02:29.8]} 17... Nxe5 {[%clk 0:01:43.7]} 18. Nxe5
{[%clk 0:02:30.5]} 18... b6 {[%clk 0:01:36.7]} 19. Qc6 {[%clk 0:02:13.8]} 19...
Ba6 {[%clk 0:01:34.3]} 20. Rd4 {[%clk 0:02:03.9]} 20... Qf5 {[%clk 0:01:29.2]}
21. Qa4 {[%clk 0:01:48.7]} 21... Bb7 {[%clk 0:01:25.9]} 22. Rf4 {[%clk 0:01:43]}
22... Qh5 {[%clk 0:01:19.1]} 23. Qd7 {[%clk 0:01:37.6]} 23... Rad8 {[%clk
0:01:14.5]} 24. Qxb7 {[%clk 0:01:27.4]} 24... Qxe5 {[%clk 0:01:14.8]} 25. Rfe4
{[%clk 0:01:27.8]} 25... Qd5 {[%clk 0:01:12]} 26. Qxa7 {[%clk 0:01:27.2]} 26...
Qxe4 {[%clk 0:01:10.9]} 0-1

[Event "*** Titled Tuesday Blitz"]
[Site "Chess.com"]
[Date "2019.07.02"]
[Round "4"]
[White "Mikhail_Golubev"]
[Black "saraswathii"]
[Result "1-0"]
[WhiteElo "2557"]
[BlackElo "2332"]
[TimeControl "180+2"]
[EndTime "13:50:10 PDT"]
[Termination "Mikhail_Golubev won by resignation"]

1. e4 {[%clk 0:03:01.9]} 1... c5 {[%clk 0:03:00.3]} 2. Nf3 {[%clk 0:03:02]} 2...
e6 {[%clk 0:03:01.4]} 3. d4 {[%clk 0:03:02.5]} 3... cxd4 {[%clk 0:03:03.3]} 4.
Nxd4 {[%clk 0:03:03.3]} 4... Nf6 {[%clk 0:03:04.3]} 5. Nc3 {[%clk 0:03:03.4]}
5... Nc6 {[%clk 0:03:05.2]} 6. a3 {[%clk 0:03:02.6]} 6... d5 {[%clk 0:03:05.4]}
7. Bb5 {[%clk 0:03:02.5]} 7... Qc7 {[%clk 0:03:01.6]} 8. exd5 {[%clk 0:02:51.2]}
8... Nxd5 {[%clk 0:02:45.5]} 9. Nxd5 {[%clk 0:02:48.9]} 9... exd5 {[%clk
0:02:44.4]} 10. O-O {[%clk 0:02:47.9]} 10... Be6 {[%clk 0:02:38.6]} 11. Re1
{[%clk 0:02:44.7]} 11... Qd6 {[%clk 0:02:29.5]} 12. c4 {[%clk 0:02:38.1]} 12...
O-O-O {[%clk 0:02:25.2]} 13. Bxc6 {[%clk 0:02:25.7]} 13... bxc6 {[%clk
0:02:23.6]} 14. Qa4 {[%clk 0:02:25.7]} 14... Kb7 {[%clk 0:02:19.4]} 15. Be3
{[%clk 0:02:13.9]} 15... a6 {[%clk 0:02:14.6]} 16. c5 {[%clk 0:02:10]} 16... Qc7
{[%clk 0:02:06.5]} 17. Nb3 {[%clk 0:02:08.1]} 17... Rc8 {[%clk 0:02:02.3]} 18.
Bf4 {[%clk 0:01:55.3]} 18... Qd7 {[%clk 0:01:59.4]} 19. Rac1 {[%clk 0:01:38.2]}
19... Be7 {[%clk 0:01:55.7]} 20. Rc3 {[%clk 0:01:13.8]} 20... Bf6 {[%clk
0:01:55]} 21. Na5+ {[%clk 0:01:13.3]} 21... Ka7 {[%clk 0:01:50.3]} 22. Rb3
{[%clk 0:01:13.4]} 22... Be7 {[%clk 0:01:13.3]} 23. Rb6 {[%clk 0:01:02.2]} 23...
Bxc5 {[%clk 0:01:12.7]} 24. Rxa6+ {[%clk 0:01:01.4]} 24... Kxa6 {[%clk
0:01:11.8]} 25. Nb3+ {[%clk 0:01:00.2]} 25... Kb6 {[%clk 0:01:12.7]} 26. Qa5+
{[%clk 0:01:00.2]} 1-0

[Event "*** Titled Tuesday Blitz"]
[Site "Chess.com"]
[Date "2019.07.02"]
[Round "4"]
[White "warmoatmeal"]
[Black "ecwinslow"]
[Result "0-1"]
[WhiteElo "1802"]
[BlackElo "1989"]
[TimeControl "180+2"]
[EndTime "13:50:10 PDT"]
[Termination "ecwinslow won by resignation"]

1. Nf3 {[%clk 0:02:16.4]} 1... Nf6 {[%clk 0:02:58.7]} 2. d4 {[%clk 0:02:17.1]}
2... g6 {[%clk 0:02:58.8]} 3. c4 {[%clk 0:02:17.6]} 3... Bg7 {[%clk 0:02:58.9]}
4. Nc3 {[%clk 0:02:18.6]} 4... O-O {[%clk 0:02:57.5]} 5. Bg5 {[%clk 0:02:20]}
5... h6 {[%clk 0:02:54.1]} 6. Bh4 {[%clk 0:02:19.1]} 6... g5 {[%clk 0:02:53.8]}
7. Bg3 {[%clk 0:02:19.8]} 7... Nh5 {[%clk 0:02:55.4]} 8. e3 {[%clk 0:02:19.4]}
8... c5 {[%clk 0:02:53.9]} 9. Bd3 {[%clk 0:02:08]} 9... cxd4 {[%clk 0:02:43]}
10. Nxg5 {[%clk 0:01:57.5]} 10... Nxg3 {[%clk 0:02:38.1]} 11. hxg3 {[%clk
0:01:57.8]} 11... dxc3 {[%clk 0:02:34.8]} 12. Rxh6 {[%clk 0:01:38.9]} 12... Bxh6
{[%clk 0:02:24.8]} 13. Qh5 {[%clk 0:01:39]} 13... Qb6 {[%clk 0:02:17.1]} 14. Ke2
{[%clk 0:00:41.2]} 14... Nc6 {[%clk 0:01:39.4]} 15. Rh1 {[%clk 0:00:19.8]} 15...
Ne5 {[%clk 0:01:35]} 16. Bh7+ {[%clk 0:00:11.6]} 16... Kg7 {[%clk 0:01:35.6]}
17. Ne4 {[%clk 0:00:08.2]} 17... Qxb2+ {[%clk 0:01:22.8]} 18. Kd1 {[%clk
0:00:08.3]} 18... c2+ {[%clk 0:01:21.8]} 19. Ke2 {[%clk 0:00:08.6]} 19... c1=Q+
{[%clk 0:01:21.1]} 0-1

[Event "*** Titled Tuesday Blitz"]
[Site "Chess.com"]
[Date "2019.07.02"]
[Round "4"]
[White "fidezivkovic"]
[Black "CarlssonLudvig"]
[Result "0-1"]
[WhiteElo "2251"]
[BlackElo "2377"]
[TimeControl "180+2"]
[EndTime "13:50:15 PDT"]
[Termination "CarlssonLudvig won by checkmate"]

1. e4 {[%clk 0:03:01]} 1... e5 {[%clk 0:03:00.5]} 2. Nf3 {[%clk 0:03:01]} 2...
Nc6 {[%clk 0:03:01.1]} 3. d4 {[%clk 0:03:01.3]} 3... exd4 {[%clk 0:03:01.4]} 4.
Bc4 {[%clk 0:03:01]} 4... Nf6 {[%clk 0:03:01.5]} 5. e5 {[%clk 0:03:01]} 5... d5
{[%clk 0:03:01.4]} 6. Bb5 {[%clk 0:03:00.8]} 6... Ne4 {[%clk 0:01:55.3]} 7. Nxd4
{[%clk 0:02:59.8]} 7... Bc5 {[%clk 0:01:56.1]} 8. O-O {[%clk 0:02:55.2]} 8...
Bxd4 {[%clk 0:01:36.6]} 9. Qxd4 {[%clk 0:02:54.5]} 9... O-O {[%clk 0:01:38.5]}
10. Bxc6 {[%clk 0:02:42.7]} 10... bxc6 {[%clk 0:01:40.4]} 11. Nc3 {[%clk
0:02:43]} 11... Bf5 {[%clk 0:01:23]} 12. Nxe4 {[%clk 0:02:37.8]} 12... Bxe4
{[%clk 0:01:24.9]} 13. c4 {[%clk 0:02:37.3]} 13... Re8 {[%clk 0:01:16.6]} 14. f3
{[%clk 0:02:36.8]} 14... Bg6 {[%clk 0:01:16.3]} 15. f4 {[%clk 0:02:18.8]} 15...
Be4 {[%clk 0:01:14]} 16. Be3 {[%clk 0:02:14.9]} 16... f5 {[%clk 0:01:09.2]} 17.
cxd5 {[%clk 0:01:59.5]} 17... cxd5 {[%clk 0:01:09.7]} 18. Rac1 {[%clk
0:01:58.6]} 18... Re6 {[%clk 0:01:09]} 19. Rf2 {[%clk 0:01:50]} 19... Rg6 {[%clk
0:01:03.7]} 20. Qc5 {[%clk 0:01:45.9]} 20... Qh4 {[%clk 0:00:56.8]} 21. Qxc7
{[%clk 0:01:25.9]} 21... Qh3 {[%clk 0:00:57]} 22. g3 {[%clk 0:00:59.6]} 22...
Rxg3+ {[%clk 0:00:56.6]} 23. hxg3 {[%clk 0:00:57.2]} 23... Qh1# {[%clk
0:00:58.5]} 0-1

[Event "*** Titled Tuesday Blitz"]
[Site "Chess.com"]
[Date "2019.07.02"]
[Round "4"]
[White "GeorgeTen"]
[Black "chess4life23"]
[Result "0-1"]
[WhiteElo "2227"]
[BlackElo "2361"]
[TimeControl "180+2"]
[EndTime "13:50:17 PDT"]
[Termination "chess4life23 won by resignation"]

1. d4 {[%clk 0:02:58.7]} 1... Nf6 {[%clk 0:03:00.8]} 2. Nf3 {[%clk 0:02:58.8]}
2... g6 {[%clk 0:03:01.9]} 3. c4 {[%clk 0:02:58.9]} 3... Bg7 {[%clk 0:03:03]} 4.
Nc3 {[%clk 0:03:00]} 4... d5 {[%clk 0:03:04.2]} 5. Bg5 {[%clk 0:02:58.6]} 5...
Ne4 {[%clk 0:03:04.3]} 6. cxd5 {[%clk 0:03:00]} 6... Nxg5 {[%clk 0:03:04.9]} 7.
Nxg5 {[%clk 0:03:01.1]} 7... e6 {[%clk 0:03:06.4]} 8. Nf3 {[%clk 0:03:02.1]}
8... exd5 {[%clk 0:03:07.6]} 9. b4 {[%clk 0:03:03.2]} 9... O-O {[%clk
0:03:07.9]} 10. e3 {[%clk 0:03:03.4]} 10... Bg4 {[%clk 0:03:05.6]} 11. Be2
{[%clk 0:03:02.9]} 11... a5 {[%clk 0:03:04.9]} 12. b5 {[%clk 0:03:02.2]} 12...
c5 {[%clk 0:03:06.1]} 13. bxc6 {[%clk 0:03:02.7]} 13... bxc6 {[%clk 0:03:06.9]}
14. Rc1 {[%clk 0:03:03.7]} 14... Nd7 {[%clk 0:02:50.2]} 15. Na4 {[%clk
0:02:41.5]} 15... Qe7 {[%clk 0:02:33.9]} 16. O-O {[%clk 0:02:34.9]} 16... Rac8
{[%clk 0:02:12.1]} 17. Nc5 {[%clk 0:02:28.2]} 17... Rfe8 {[%clk 0:01:53.6]} 18.
Qa4 {[%clk 0:02:03.2]} 18... Ra8 {[%clk 0:01:26.5]} 19. h3 {[%clk 0:01:43]}
19... Bxf3 {[%clk 0:01:22.8]} 20. Bxf3 {[%clk 0:01:44.5]} 20... Nb6 {[%clk
0:01:10.8]} 21. Qxc6 {[%clk 0:01:43.1]} 21... Nc4 {[%clk 0:01:10.4]} 22. Qxd5
{[%clk 0:01:34]} 22... Nd2 {[%clk 0:01:03.2]} 23. Be2 {[%clk 0:01:29.6]} 23...
Rad8 {[%clk 0:01:00.2]} 24. Qf3 {[%clk 0:00:54.3]} 24... Nxf3+ {[%clk
0:01:00.6]} 0-1